bitfinex-derivatives/quotes_ETHF0:USTF0_20250709
["timestamp","ask_amount","ask_price","bid_price","bid_amount"]
[1752036005709,1.42618,2601.8,2601.7,1.72997292]
[1752036005913,1.42618,2601.8,2601.7,1.05787292]
[1752036006111,1.42618,2601.8,2601.7,1.72997292]
[1752036006312,3.37492541,2601.8,2601.7,1.72997292]
[1752036009007,2.07058,2601.8,2601.7,1.73106536]
[1752036009213,3.37492541,2601.8,2601.7,1.73106536]
[1752036009505,4.40082541,2601.8,2601.7,1.05896536]
[1752036009901,0.6444,2601.8,2601.7,1.05896536]
[1752036010105,2.07058,2601.8,2601.7,1.73106536]
[1752036010306,2.07058,2601.8,2601.7,1.05896536]
[1752036010506,3.09648,2601.8,2601.7,1.05896536]
[1752036010706,3.33838,2601.8,2601.7,1.73106536]
[1752036010909,0.76858,2601.8,2601.7,1.73106536]
[1752036011104,1.42618,2601.8,2601.7,1.73106536]
[1752036011512,1.42618,2601.8,2601.7,1.05896536]
[1752036011707,2.69398,2601.8,2601.7,1.73106536]
[1752036011907,3.99832541,2601.8,2601.7,1.05896536]
[1752036012213,3.99832541,2601.8,2601.7,1.73106536]
[1752036012710,3.99832541,2601.8,2601.7,1.05896536]
[1752036013708,2.69398,2601.8,2601.7,1.05896536]
[1752036013908,2.69398,2601.8,2601.7,1.73106536]
[1752036014507,2.69398,2601.8,2601.7,1.05896536]
[1752036014914,2.69398,2601.8,2601.7,1.73106536]
[1752036015115,2.69398,2601.8,2601.7,1.05896536]
[1752036015414,1.42618,2601.8,2601.7,1.73106536]
[1752036015915,1.42618,2601.8,2601.7,1.05896536]
[1752036016118,2.78038,2601.8,2601.7,1.70666536]
[1752036016316,2.78038,2601.8,2601.7,1.05896536]
[1752036017811,2.78038,2601.8,2601.7,1.70666536]
[1752036018313,2.78038,2601.8,2601.7,1.05896536]
[1752036018818,2.78038,2601.8,2601.7,0.6477]
[1752036019709,2.78038,2601.8,2601.7,1.41631]
[1752036019916,1.42618,2601.8,2601.7,0.6477]
[1752036020312,1.42618,2601.8,2601.7,1.3252]
[1752036022120,1.42618,2601.8,2601.7,2.09381]
[1752036022318,1.42618,2601.8,2601.7,1.3252]
[1752036023122,0.76858,2601.8,2601.7,1.3252]
[1752036023322,0.76858,2601.8,2601.7,2.3509]
[1752036023522,1.44168,2601.8,2601.7,2.3509]
[1752036023821,0.76858,2601.8,2601.7,2.3509]
[1752036024022,1.44168,2601.8,2601.7,1.3252]
[1752036026124,2.84700159,2601.8,2601.7,1.3252]
[1752036027525,2.84738489,2601.8,2601.7,1.3252]
[1752036028326,2.84775616,2601.8,2601.7,1.3252]
[1752036033224,1.44168,2601.8,2601.7,1.3252]
[1752036033426,2.84833245,2601.8,2601.7,1.3252]
[1752036037622,0.76864,2601.6,2601.5,3.4372067]
[1752036037827,4.15273786,2601.6,2601.5,0.6477]
[1752036039927,0.76867,2601.5,2601.4,3.4372067]
[1752036040226,1.44177,2601.5,2601.4,4.0849067]
[1752036040623,1.44177,2601.5,2601.4,3.4372067]
[1752036040824,0.7687,2601.4,2601.3,3.4372067]
[1752036041031,3.40644541,2601.4,2601.3,3.4372067]
[1752036041218,4.68574541,2601.4,2601.3,4.0849067]
[1752036041925,3.3814,2601.4,2601.3,0.6477]
[1752036042326,0.7687,2601.4,2601.3,1.6734]
[1752036042531,1.4418,2601.4,2601.3,1.3023]
[1752036043733,2.84853471,2601.4,2601.3,1.3023]
[1752036044032,4.15288012,2601.4,2601.3,1.3023]
[1752036045230,2.74614541,2601.4,2601.3,1.3023]
[1752036046130,1.4418,2601.4,2601.3,1.3023]
[1752036046327,2.74614541,2601.4,2601.3,1.3023]
[1752036048033,4.10824541,2601.4,2601.3,0.6477]
[1752036053225,2.74614541,2601.4,2601.3,0.6477]
[1752036056135,1.92737879,2601.6,2601.5,0.76867]
[1752036056136,0.00576879,2601.6,2601.5,0.76867]
[1752036056336,0.00576879,2601.6,2601.5,1.43247]
[1752036056637,0.00576879,2601.6,2601.5,2.44057]
[1752036056835,0.00576879,2601.6,2601.5,3.81877]
[1752036057737,0.00576879,2601.6,2601.5,2.14687]
[1752036057938,0.00576879,2601.6,2601.5,3.81877]
[1752036058638,0.00576879,2601.6,2601.5,7.2559767]
[1752036061341,0.00576879,2601.6,2601.5,5.5840767]
[1752036061640,0.00576879,2601.6,2601.5,7.2559767]
[1752036064842,0.76854,2602.0,2601.6,1.92157]
[1752036065143,0.76854,2602.0,2601.9,1.43234]
[1752036065537,0.76854,2602.0,2601.9,2.44044]
[1752036066146,1.9901,2602.3,2602.0,0.76849]
[1752036066365,3.45360157,2602.7,2602.0,0.76849]
[1752036066366,2.30240105,2602.7,2602.2,1.30434541]
[1752036066645,1.0287,2603.2,2602.8,0.76827]
[1752036066646,0.6376,2603.2,2602.8,0.76827]
[1752036066846,0.7682,2603.1,2602.9,1.672]
[1752036067244,5.51020105,2603.7,2603.0,1.6719]
[1752036067441,0.76823,2603.0,2602.9,0.6639]
[1752036067635,1.44953,2603.0,2602.9,1.3277]
[1752036068046,0.76823,2603.0,2602.9,1.3277]
[1752036068347,2.33304541,2603.6,2603.0,0.76822]
[1752036068535,0.76818,2603.2,2603.0,0.76822]
[1752036068740,0.76818,2603.2,2603.1,0.6638]
[1752036068936,1.44948,2603.2,2602.9,5.94428541]
[1752036069141,0.76828,2602.9,2602.7,1.01386879]
[1752036069345,0.6934,2603.1,2602.8,2.44019]
[1752036069545,0.6934,2603.1,2602.8,1.6719]
[1752036069844,0.76824,2603.0,2602.8,1.6719]
[1752036070045,1.44956,2602.9,2602.8,0.6638]
[1752036070241,2.75390541,2602.9,2602.8,0.6638]
[1752036070442,0.76829,2602.8,2602.7,0.00576879]
[1752036070745,0.76829,2602.8,2602.7,0.66956879]
[1752036071445,0.76829,2602.8,2602.7,0.00576879]
[1752036071648,2.08619,2602.8,2602.7,0.00576879]
[1752036073551,2.08619,2602.8,2602.7,0.66956879]
[1752036073743,2.08619,2602.8,2602.7,0.00576879]
[1752036073941,1.44959,2602.8,2602.7,0.66956879]
[1752036074850,0.76829,2602.8,2602.7,0.66956879]
[1752036075050,1.44959,2602.8,2602.7,0.66956879]
[1752036075247,0.76829,2602.8,2602.7,0.66956879]
[1752036075450,1.44959,2602.8,2602.7,0.66956879]
[1752036076248,1.44959,2602.8,2602.7,0.00576879]
[1752036076551,2.75299,2602.8,2602.7,0.63796879]
[1752036077943,0.76829,2602.8,2602.7,0.63796879]
[1752036078146,0.76829,2602.8,2602.7,2.31596879]
[1752036078647,0.76828,2602.9,2602.7,3.08425879]
[1752036078846,0.6513,2602.8,2602.7,3.08425879]
[1752036079046,1.41959,2602.8,2602.7,1.27456879]
[1752036079247,2.72393541,2602.8,2602.7,1.27456879]
[1752036079749,2.72393541,2602.8,2602.7,0.00576879]
[1752036080051,2.72393541,2602.8,2602.7,0.63796879]
[1752036080252,0.76829,2602.8,2602.7,1.67936879]
[1752036080654,1.41959,2602.8,2602.7,1.67936879]
[1752036081551,2.72393541,2602.8,2602.7,0.63796879]
[1752036084353,1.41959,2602.8,2602.7,0.63796879]
[1752036085053,1.41959,2602.8,2602.7,0.00576879]
[1752036085353,2.67289,2602.8,2602.7,0.63796879]
[1752036087658,6.89149,2602.8,2602.7,0.00576879]
[1752036092355,8.28004901,2602.8,2602.7,0.00576879]
[1752036093250,0.76843,2602.3,2602.2,3.2078]
[1752036093555,1.41973,2602.3,2602.2,3.2078]
[1752036093853,0.76855,2601.9,2601.8,3.42738315]
[1752036094055,2.72419541,2601.9,2601.8,0.6322]
[1752036094250,2.07289541,2601.9,2601.8,5.10098315]
[1752036094453,2.07289541,2601.9,2601.8,4.05958315]
[1752036094655,2.72419541,2601.9,2601.8,4.05958315]
[1752036094855,2.07289541,2601.9,2601.8,4.05958315]
[1752036095056,2.72419541,2601.9,2601.8,4.05958315]
[1752036095258,2.07289541,2601.9,2601.8,0.6322]
[1752036095455,3.87709541,2601.9,2601.5,7.31348315]
[1752036095654,1.30434541,2601.6,2601.5,7.31348315]
[1752036095859,2.07298541,2601.6,2601.5,7.94568315]
[1752036096262,2.07298541,2601.6,2601.5,8.98708315]
[1752036096263,0.76864,2601.6,2601.5,8.98708315]
[1752036097468,0.76864,2601.6,2601.5,5.5597]
[1752036097860,1.41994,2601.6,2601.5,5.5597]
[1752036098662,1.41994,2601.6,2601.5,2.3519]
[1752036098863,1.41994,2601.6,2601.5,5.5597]
[1752036100263,1.41994,2601.6,2601.5,6.32837]
[1752036100463,1.41994,2601.6,2601.5,5.5597]
[1752036101167,1.41994,2601.6,2601.5,6.32837]
[1752036101367,2.07297541,2601.7,2601.5,6.32837]
[1752036101669,0.76864,2601.6,2601.5,5.28697]
[1752036102365,0.76864,2601.6,2601.5,6.32837]
[1752036102762,0.76864,2601.6,2601.5,5.5597]
[1752036102962,1.41994,2601.6,2601.5,5.5597]
[1752036103162,1.41994,2601.6,2601.5,6.32837]
[1752036104269,0.76864,2601.6,2601.5,6.32837]
[1752036105868,1.41994,2601.6,2601.5,6.32837]
[1752036106064,0.76864,2601.6,2601.5,6.32837]
[1752036106767,3.2078,2602.1,2601.5,6.87424541]
[1752036106768,4.51214541,2602.1,2601.5,6.87424541]
[1752036106968,0.76858,2601.9,2601.8,0.76856]
[1752036107361,3.2078,2602.1,2601.8,0.76856]
[1752036107567,0.76854,2602.0,2601.9,0.76854]
[1752036108765,3.2078,2602.1,2601.9,0.76854]
[1752036108766,0.76849,2602.2,2602.1,0.76848]
[1752036108970,0.6741,2602.2,2601.8,3.2078]
[1752036109176,2.31514541,2602.3,2601.9,1.2803]
[1752036109464,0.76851,2602.1,2602.0,0.76852]
[1752036110370,0.76849,2602.2,2602.1,0.76849]
[1752036111272,0.76847,2602.2,2602.1,0.76848]
[1752036112069,0.76847,2602.2,2602.1,2.37258]
[1752036112668,0.76847,2602.2,2602.1,1.6041]
[1752036113069,2.74691541,2602.2,2602.1,0.6424]
[1752036113269,0.76854,2602.0,2601.9,0.76855]
[1752036113469,0.76855,2601.9,2601.8,3.97637]
[1752036113669,0.76854,2602.0,2601.9,0.76855]
[1752036113874,0.76854,2602.0,2601.9,1.41095]
[1752036114074,0.76854,2602.0,2601.9,1.6041]
[1752036114374,0.76854,2602.0,2601.9,2.37265]
[1752036115675,0.76854,2602.0,2601.9,3.63925]
[1752036116374,0.76855,2601.9,2601.8,3.2078]
[1752036116571,1.44265,2601.9,2601.8,3.8502]
[1752036116874,2.74699541,2601.9,2601.8,3.8502]
[1752036117777,2.74699541,2601.9,2601.8,0.6424]
[1752036118073,0.76864,2601.6,2601.5,8.36553315]
[1752036118278,1.44274,2601.6,2601.5,8.23928315]
[1752036118468,1.44274,2601.6,2601.5,5.58057]
[1752036118875,1.44274,2601.6,2601.5,4.8119]
[1752036119274,0.6887,2602.1,2601.9,0.76854]
[1752036119275,0.76852,2602.1,2601.9,0.76854]
[1752036119481,0.76848,2602.2,2602.0,2.37261]
[1752036119680,0.76848,2602.2,2602.0,3.71281]
[1752036119875,0.76845,2602.3,2602.0,2.75111]
[1752036120274,0.76846,2602.2,2602.1,0.9617]
[1752036120475,1.44256,2602.2,2602.1,0.6424]
[1752036121182,0.76846,2602.2,2602.1,1.41089]
[1752036121374,1.44256,2602.2,2602.1,1.41089]
[1752036121574,1.44256,2602.2,2602.1,0.6424]
[1752036122476,1.44256,2602.2,2602.0,0.76851]
[1752036122671,0.76852,2602.0,2601.9,3.97634]
[1752036123081,1.44262,2602.0,2601.9,4.61874]
[1752036123276,0.76852,2602.0,2601.9,3.8502]
[1752036123475,1.44262,2602.0,2601.9,3.8502]
[1752036123771,0.76855,2601.9,2601.8,3.43189266]
[1752036123973,1.44265,2601.9,2601.8,4.07429266]
[1752036124279,1.44265,2601.9,2601.8,3.43189266]
[1752036124478,1.44265,2601.9,2601.8,4.84287266]
[1752036124978,1.44265,2601.9,2601.8,0.6424]
[1752036125680,1.44265,2601.9,2601.8,1.41098]
[1752036125980,1.44265,2601.9,2601.8,0.6424]
[1752036126177,1.44265,2601.9,2601.8,0.76858]
[1752036126379,1.44265,2601.9,2601.8,1.41098]
[1752036126684,0.76858,2601.8,2601.7,8.05958266]
[1752036126980,0.76857,2601.9,2601.7,8.70198266]
[1752036127176,0.76858,2601.8,2601.7,9.66368266]
[1752036127382,1.44268,2601.8,2601.7,9.66368266]
[1752036128380,1.44268,2601.8,2601.7,8.70198266]
[1752036128580,0.6741,2601.8,2601.7,8.70198266]
[1752036128983,0.76854,2602.0,2601.9,0.76854]
[1752036129481,1.44264,2602.0,2601.9,1.41094]
[1752036129981,1.44264,2602.0,2601.9,0.6424]
[1752036130483,1.44264,2602.0,2601.9,1.41095]
[1752036130679,1.44264,2602.0,2601.9,0.6424]
[1752036131684,0.76855,2601.9,2601.8,1.73026]
[1752036131885,1.44265,2601.9,2601.8,1.41096]
[1752036132884,1.44267,2601.9,2601.8,0.76858]
[1752036133084,1.44267,2601.9,2601.8,1.41098]
[1752036133485,0.76857,2601.9,2601.8,1.41098]
[1752036133683,1.44267,2601.9,2601.8,1.41098]
[1752036135086,0.6741,2601.9,2601.8,2.37268]
[1752036135381,2.92884541,2601.9,2601.7,6.63969266]
[1752036135584,3.72808,2601.8,2601.7,3.2078]
[1752036135787,5.75832306,2601.8,2601.7,3.2078]
[1752036136186,5.75832306,2601.8,2601.7,3.8829]
[1752036137789,5.75832306,2601.8,2601.7,3.2078]
[1752036138282,0.76867,2601.5,2601.4,3.43189266]
[1752036138483,2.70851541,2601.5,2601.4,4.10699266]
[1752036138681,0.7687,2601.4,2601.3,4.20061266]
[1752036138885,1.4042,2601.4,2601.3,4.87571266]
[1752036140185,1.4042,2601.4,2601.3,4.20061266]
[1752036140492,1.4042,2601.4,2601.3,4.87571266]
[1752036141898,1.4042,2601.4,2601.3,4.10699266]
[1752036142092,2.0646,2601.4,2601.3,4.10699266]
[1752036142294,3.3306,2601.4,2601.3,4.10699266]
[1752036142596,4.3404,2601.4,2601.3,4.10699266]
[1752036142998,4.3404,2601.4,2601.3,0.6751]
[1752036143296,0.76863,2601.7,2601.6,0.76862]
[1752036143496,0.7686,2601.8,2601.6,1.44372]
[1752036143691,0.7686,2601.8,2601.7,0.6725]
[1752036143891,1.4041,2601.8,2601.7,2.11621]
[1752036144996,0.6355,2601.8,2601.7,3.11631]
[1752036146494,1.40408,2601.8,2601.7,3.11631]
[1752036146795,0.6355,2601.8,2601.7,3.11631]
[1752036147590,0.76855,2601.9,2601.8,0.76856]
[1752036147791,0.76854,2602.0,2601.9,0.76855]
[1752036147997,2.79952296,2602.0,2601.9,1.44365]
[1752036148599,1.39548296,2602.0,2601.9,2.44375]
[1752036148796,0.76851,2602.1,2602.0,0.76852]
[1752036148997,0.76851,2602.1,2602.0,1.44362]
[1752036149196,2.79948331,2602.1,2602.0,1.44362]
[1752036149498,2.79948331,2602.1,2602.0,1.6752]
[1752036152592,2.79948331,2602.1,2602.0,0.6751]
[1752036153192,1.40401,2602.1,2602.0,0.6751]
[1752036153599,0.76858,2601.8,2601.7,4.10439266]
[1752036153802,0.76858,2601.8,2601.7,5.54810266]
[1752036154003,1.40408,2601.8,2601.7,6.54820266]
[1752036154705,1.40408,2601.8,2601.7,4.77949266]
[1752036155108,1.40408,2601.8,2601.7,4.10699266]
[1752036155406,1.40408,2601.8,2601.7,5.10709266]
[1752036155600,1.40408,2601.8,2601.7,0.6751]
[1752036157510,0.76861,2601.7,2601.6,4.08829266]
[1752036157710,0.76864,2601.6,2601.5,6.63969266]
[1752036157910,1.40414,2601.6,2601.5,6.63969266]
[1752036158111,1.40414,2601.6,2601.5,7.31479266]
[1752036158707,1.40414,2601.6,2601.5,6.63969266]
[1752036159009,1.40414,2601.6,2601.5,7.31479266]
[1752036159813,1.40414,2601.6,2601.5,4.10699266]
[1752036160815,5.09388541,2601.6,2601.5,4.10699266]
[1752036162117,5.09388541,2601.6,2601.5,0.6751]
[1752036164116,3.78954,2601.6,2601.5,0.6751]
[1752036165319,4.32524541,2601.6,2601.3,3.43189266]
[1752036165514,0.7687,2601.4,2601.3,3.43189266]
[1752036165719,1.4042,2601.4,2601.3,4.10699266]
[1752036165920,1.4042,2601.4,2601.3,3.43189266]
[1752036166217,1.4042,2601.4,2601.3,4.08659266]
[1752036166413,2.414,2601.4,2601.3,4.08659266]
[1752036166613,3.71834541,2601.4,2601.3,0.6547]
[1752036166813,5.04524541,2601.4,2601.3,0.6547]
[1752036167221,0.76876,2601.2,2601.1,4.07019266]
[1752036167514,1.45646,2601.2,2601.1,4.72489266]
[1752036167719,1.45646,2601.2,2601.1,4.07019266]
[1752036168112,1.45646,2601.2,2601.1,4.72489266]
[1752036168315,2.76080541,2601.2,2601.1,4.72489266]
[1752036168719,3.72280541,2601.2,2601.1,0.6547]
[1752036169523,2.76080541,2601.2,2601.1,0.6547]
[1752036172923,2.76080541,2601.2,2601.1,1.42349]
[1752036173119,2.76080541,2601.2,2601.1,0.6547]
[1752036173319,2.76080541,2601.2,2601.1,1.42349]
[1752036173823,2.76080541,2601.2,2601.1,0.6547]
[1752036179226,3.72280541,2601.2,2601.1,0.6547]
[1752036179722,2.76080541,2601.2,2601.1,0.6547]
[1752036185828,3.72280541,2601.2,2601.1,0.6547]
[1752036189538,2.76080541,2601.2,2601.1,0.6547]
[1752036191938,3.72280541,2601.2,2601.1,0.6547]
[1752036192338,0.76882,2601.0,2600.9,0.6311]
[1752036192538,2.76086541,2601.0,2600.9,1.2858]
[1752036192932,2.76086541,2601.0,2600.9,0.6311]
[1752036193439,2.76086541,2601.0,2600.9,1.2858]
[1752036193739,2.76086541,2601.0,2600.9,2.05465]
[1752036194341,2.76086541,2601.0,2600.9,1.2858]
[1752036195937,2.76086541,2601.0,2600.9,1.278]
[1752036196136,3.72286541,2601.0,2600.9,0.6311]
[1752036196337,0.76885,2600.9,2600.8,3.43189266]
[1752036196538,2.38065,2600.9,2600.8,4.07879266]
[1752036196734,5.58845,2600.9,2600.8,3.43189266]
[1752036197138,6.95125,2600.9,2600.8,3.43189266]
[1752036197338,3.74345,2600.9,2600.8,3.43189266]
[1752036197736,6.95125,2600.9,2600.7,3.43189266]
[1752036197934,2.07322541,2600.8,2600.7,3.43189266]
[1752036198136,2.72302541,2600.8,2600.7,3.43189266]
[1752036198342,4.35682541,2600.8,2600.7,4.07879266]
[1752036200142,3.39922541,2600.8,2600.7,4.07879266]
[1752036200346,2.72302541,2600.8,2600.7,4.07879266]
[1752036200543,2.72302541,2600.8,2600.7,0.6469]
[1752036201946,3.68062541,2600.8,2600.7,0.6469]
[1752036202145,4.95632541,2600.8,2600.7,0.6469]
[1752036202547,4.95632541,2600.8,2600.7,1.41581]
[1752036203640,4.95632541,2600.8,2600.7,0.6469]
[1752036204039,4.95632541,2600.8,2600.6,4.88440266]
[1752036204040,0.76891,2600.7,2600.6,3.43189266]
[1752036204241,0.76891,2600.7,2600.2,0.6595]
[1752036204242,0.76902,2600.3,2600.2,0.6595]
[1752036204447,5.58422,2600.3,2600.2,1.3064]
[1752036204641,4.62662,2600.3,2600.2,1.3064]
[1752036205053,6.22082,2600.3,2600.2,1.3064]
[1752036205449,7.52272,2600.3,2600.2,0.6469]
[1752036206448,0.76908,2600.1,2600.0,0.6259]
[1752036206744,2.72322541,2600.1,2600.0,1.2728]
[1752036207149,2.72322541,2600.1,2600.0,0.6259]
[1752036207343,2.72322541,2600.1,2600.0,1.2728]
[1752036208144,3.68082541,2600.1,2600.0,0.6469]
[1752036208451,0.76914,2599.9,2599.8,7.80586153]
[1752036208750,5.28130541,2599.9,2599.7,5.57516153]
[1752036208947,2.72328541,2599.9,2599.8,0.6469]
[1752036209255,2.07348541,2599.9,2599.8,0.6469]
[1752036209655,2.72328541,2599.9,2599.8,0.6469]
[1752036210148,2.72328541,2599.9,2599.8,1.41607]
[1752036212459,1.95414541,2599.9,2599.8,1.41607]
[1752036213655,2.72328541,2599.9,2599.8,1.41607]
[1752036216159,1.95414541,2599.9,2599.8,1.41607]
[1752036216365,2.72328541,2599.9,2599.8,1.41607]
[1752036216565,2.72328541,2599.9,2599.8,0.6469]
[1752036218466,2.72328541,2599.9,2599.8,1.41607]
[1752036221071,0.76911,2600.1,2600.0,0.7691]
[1752036221266,1.41891,2600.1,2600.0,0.6469]
[1752036221564,1.92279,2600.0,2599.5,3.2078]
[1752036221765,1.95414541,2599.6,2599.5,5.4635]
[1752036221965,1.92321,2599.5,2598.8,0.9771]
[1752036222171,1.30434541,2599.2,2598.9,1.6088]
[1752036222361,0.76935,2599.2,2599.1,0.6469]
[1752036222664,1.41915,2599.2,2599.1,1.624]
[1752036223267,0.76935,2599.2,2599.1,1.624]
[1752036223670,1.41915,2599.2,2599.1,1.624]
[1752036224862,0.76934,2599.3,2599.2,0.76935]
[1752036225065,0.76934,2599.3,2599.2,1.3396]
[1752036225262,0.76934,2599.3,2599.2,2.3167]
[1752036227473,0.76925,2599.6,2599.5,0.76925]
[1752036227772,0.76922,2599.7,2599.6,0.76923]
[1752036227963,0.76922,2599.7,2599.6,1.3151]
[1752036228169,1.40792,2599.7,2599.6,2.3467]
[1752036228470,2.71226541,2599.7,2599.6,1.3151]
[1752036228674,3.69896541,2599.7,2599.1,1.0316]
[1752036228972,0.76934,2599.3,2599.2,0.76934]
[1752036229170,0.76934,2599.3,2599.2,1.39974]
[1752036229672,0.76934,2599.3,2599.2,0.6304]
[1752036229875,0.76934,2599.3,2599.2,1.39975]
[1752036230073,0.76931,2599.4,2599.3,0.76932]
[1752036230874,2.07362541,2599.5,2599.4,0.76929]
[1752036231173,0.7693,2599.4,2599.3,0.76931]
[1752036231568,2.07362541,2599.5,2599.4,0.76929]
[1752036232363,2.71232541,2599.5,2599.4,1.39969]
[1752036232864,2.71232541,2599.5,2599.4,2.04729]
[1752036233064,1.40798,2599.5,2599.4,2.04729]
[1752036233262,0.6387,2599.5,2599.4,2.04729]
[1752036233970,0.76922,2599.7,2599.6,0.76922]
[1752036234171,0.76922,2599.7,2599.6,2.43122]
[1752036234669,0.76922,2599.7,2599.6,0.6304]
[1752036234670,1.40792,2599.7,2599.6,0.6304]
[1752036235269,0.76923,2599.6,2599.5,0.76924]
[1752036235568,0.76922,2599.7,2599.6,2.43122]
[1752036235970,1.40792,2599.7,2599.6,2.43122]
[1752036236275,0.7692,2599.8,2599.7,0.7692]
[1752036236575,1.4079,2599.8,2599.7,0.6304]
[1752036237572,0.7692,2599.8,2599.7,1.3996]
[1752036237878,29.5688,2600.1,2600.0,0.76911]
[1752036237879,3.9769,2600.1,2600.0,0.76911]
[1752036238071,0.76912,2600.0,2599.9,0.76913]
[1752036238465,0.76912,2600.0,2599.9,1.39953]
[1752036238671,0.76912,2600.0,2599.9,2.43113]
[1752036239670,1.40782,2600.0,2599.9,2.43113]
[1752036239875,0.76912,2600.0,2599.9,2.43113]
[1752036240270,1.40782,2600.0,2599.9,2.43113]
[1752036242775,0.6387,2600.0,2599.9,2.43113]
[1752036243778,1.40781,2600.0,2599.9,2.43113]
[1752036249684,1.30434541,2600.1,2599.9,3.03220056]
[1752036249890,2.07342541,2600.1,2600.0,0.60107056]
[1752036250087,2.71212541,2600.1,2600.0,1.23147056]
[1752036250287,2.07342541,2600.1,2600.0,1.23147056]
[1752036250588,2.07342541,2600.1,2600.0,0.6304]
[1752036250785,1.94304541,2600.1,2600.0,0.6304]
[1752036251086,0.76916,2599.9,2599.8,0.76916]
[1752036251289,1.40786,2599.9,2599.8,1.39956]
[1752036251487,1.40786,2599.9,2599.8,0.76916]
[1752036251688,1.40786,2599.9,2599.8,1.39956]
[1752036252480,0.6387,2599.9,2599.8,1.39956]
[1752036252884,0.9867,2600.3,2600.1,0.76908]
[1752036253086,1.40775,2600.2,2600.1,1.39948]
[1752036253900,1.6254,2600.2,2600.1,1.39946]
[1752036254487,2.39445,2600.2,2600.1,1.39946]
[1752036255586,1.6254,2600.2,2600.1,1.39946]
[1752036256391,2.39445,2600.2,2600.1,1.39946]
[1752036256594,1.6254,2600.2,2600.1,1.39946]
[1752036256790,1.6254,2600.2,2599.8,3.22725541]
[1752036257089,1.6254,2600.2,2599.8,4.49095541]
[1752036257294,2.39446,2600.2,2600.1,0.76906]
[1752036257794,0.6387,2600.2,2600.1,0.76906]
[1752036258389,4.802,2600.4,2600.3,0.76902]
[1752036258584,4.4901,2600.4,2600.3,0.76902]
[1752036258893,2.2501,2600.4,2600.3,0.76902]
[1752036259687,0.76902,2600.3,2600.2,0.76904]
[1752036259887,1.42492,2600.3,2600.2,0.76904]
[1752036264093,0.76905,2600.2,2600.1,1.42856]
[1752036264687,1.42495,2600.2,2600.1,1.42856]
[1752036265094,0.6559,2600.2,2600.1,1.42856]
[1752036265697,1.42495,2600.2,2600.1,1.42856]
[1752036265898,0.6559,2600.2,2600.1,1.42856]
[1752036266093,0.76911,2600.0,2599.9,3.2078]
[1752036266299,1.42501,2600.0,2599.9,3.8705]
[1752036266500,2.39281,2600.0,2599.9,3.8705]
[1752036266900,3.70521,2600.0,2599.9,3.2078]
[1752036267099,0.76914,2599.9,2599.8,0.76915]
[1752036267295,0.76917,2599.8,2599.7,5.24046153]
[1752036267495,2.39287,2599.8,2599.7,6.00966153]
[1752036267697,2.39287,2599.8,2599.7,1.4116]
[1752036267900,0.6559,2599.8,2599.7,6.00966153]
[1752036268600,1.6237,2599.8,2599.7,6.00966153]
[1752036268801,1.6237,2599.8,2599.7,1.4116]
[1752036269803,2.2692,2599.8,2599.7,1.4116]
[1752036270600,3.03837,2599.8,2599.7,1.4116]
[1752036270803,2.2692,2599.8,2599.7,1.4116]
[1752036271299,3.03837,2599.8,2599.7,1.4116]
[1752036271600,2.2692,2599.8,2599.7,1.4116]
[1752036271903,3.03837,2599.8,2599.7,1.4116]
[1752036272104,0.7692,2599.7,2599.6,5.36727153]
[1752036272301,1.41469,2599.8,2599.7,0.7692]
[1752036272894,1.3014,2599.8,2599.7,0.7692]
[1752036273099,2.2692,2599.8,2599.7,0.7692]
[1752036274104,0.6559,2599.8,2599.7,0.7692]
[1752036281707,1.6237,2599.8,2599.7,0.7692]
[1752036290821,1.6237,2599.8,2599.7,27.0502]
[1752036291326,3.76137,2599.8,2599.7,0.7692]
[1752036291518,5.06571541,2599.8,2599.7,0.7692]
[1752036291718,5.06571541,2599.8,2599.6,26.12693255]
[1752036291914,2.0337,2599.7,2599.6,0.76923]
[1752036292125,3.7194,2599.7,2599.6,0.76923]
[1752036294226,0.6598,2599.7,2599.6,0.76923]
[1752036294524,0.6598,2599.7,2599.6,1.43913]
[1752036295023,1.0259,2599.9,2599.8,0.76917]
[1752036295229,1.6857,2599.9,2599.8,0.76917]
[1752036295419,0.6598,2599.9,2599.8,0.76917]
[1752036297324,0.693,2600.3,2599.8,31.41168]
[1752036297622,2.17387521,2600.2,2600.1,0.76908]
[1752036297830,2.17387521,2600.2,2600.1,27.05008]
[1752036298222,2.17387521,2600.2,2600.1,0.76908]
[1752036298422,1.6857,2600.2,2600.1,0.76908]
[1752036298626,2.9857,2600.2,2600.1,0.76908]
[1752036298919,2.9857,2600.2,2600.0,0.76909]
[1752036299125,2.3259,2600.1,2600.0,0.76909]
[1752036299325,1.9598,2600.1,2600.0,0.76909]
[1752036299529,6.96259,2600.1,2599.9,27.05012]
[1752036299727,2.0386,2600.0,2599.9,27.05012]
[1752036299926,3.7243,2600.0,2599.9,27.05012]
[1752036300121,3.7243,2600.0,2599.9,0.76912]
[1752036300324,3.7243,2600.0,2599.7,1.95104541]
[1752036300522,2.6984,2600.0,2599.9,0.76914]
[1752036300718,3.7243,2600.0,2599.9,0.76914]
[1752036301025,6.00704211,2600.0,2599.8,27.04916]
[1752036301325,2.3863,2599.9,2599.8,27.04916]
[1752036301526,3.0461,2599.9,2599.8,27.04916]
[1752036303931,3.0461,2599.9,2599.8,0.76916]
[1752036304230,3.0461,2599.9,2599.8,27.04916]
[1752036310135,3.0461,2599.9,2599.8,0.76916]
[1752036311434,2.45484,2599.9,2599.8,0.76916]
[1752036311633,2.45486,2599.9,2599.8,0.76917]
[1752036311833,2.45486,2599.9,2599.7,26.279]
[1752036311834,3.0148,2599.9,2599.7,26.279]
[1752036312032,0.76917,2599.8,2599.7,27.04818]
[1752036312233,2.45487,2599.8,2599.7,0.76918]
[1752036312427,0.76921,2599.7,2599.6,0.76922]
[1752036312633,1.43561,2599.7,2599.6,0.76922]
[1752036312832,3.12131,2599.7,2599.6,0.76922]